fUSD/lending_fUSD_20241123
["ID","MTS","AMOUNT","RATE_DAILY","PERIOD"]
[343174041,1732395094765,-625.15,0.00055869,120]
[343174042,1732395094775,-151.0,0.00055869,120]
[343174043,1732395094784,-625.15,0.00055869,120]
[343174044,1732395094794,-625.15,0.00055869,120]
[343174045,1732395094803,-625.15,0.00055869,120]
[343174046,1732395094813,-625.15,0.00055869,120]
[343174047,1732395094821,-625.15,0.00055869,120]
[343174048,1732395094829,-500.0,0.00055869,120]
[343174049,1732395094839,-625.15,0.00055869,120]
[343174050,1732395094855,-500.0,0.00055869,120]
[343174051,1732395094865,-625.15,0.00055869,120]
[343174052,1732395094875,-625.15,0.00055869,120]
[343174053,1732395094889,-500.0,0.00055869,120]
[343174054,1732395094898,-625.37978598,0.00055869,120]
[343174055,1732395094908,-500.0,0.00055869,120]
[343174056,1732395094917,-500.0,0.00055869,120]
[343174057,1732395094929,-287.8,0.00055869,120]
[343174058,1732395094938,-500.0,0.00055869,120]
[343174059,1732395094947,-500.0,0.00055869,120]
[343174060,1732395094957,-500.0,0.00055869,120]
[343174061,1732395094966,-500.0,0.00055869,120]
[343174062,1732395094975,-500.0,0.00055869,120]
[343174063,1732395094984,-500.0,0.00055869,120]
[343174064,1732395094993,-500.0,0.00055869,120]
[343174065,1732395095002,-161.43,0.00055869,120]
[343174066,1732395095012,-500.0,0.00055869,120]
[343174067,1732395095021,-500.0,0.00055869,120]
[343174068,1732395095031,-500.0,0.00055869,120]
[343174069,1732395095040,-500.0,0.00055869,120]
[343174070,1732395095049,-500.0,0.00055869,120]
[343174071,1732395095059,-500.0,0.00055869,120]
[343174072,1732395095068,-500.0,0.00055869,120]
[343174073,1732395095078,-219.64,0.00055869,120]
[343174074,1732395095087,-643.72,0.00055869,120]
[343174075,1732395095101,-100000.0,0.0005587,48]
[343174076,1732395095110,-7580.26907428,0.0005587,120]
[343174077,1732395095120,-1267683.52953368,0.0005587,120]
[343174078,1732395095129,-2000.0,0.0005587,15]
[343174079,1732395095139,-200.0,0.0005587,15]
[343174080,1732395095148,-2000.0,0.0005587,15]
[343174081,1732395095158,-200.0,0.0005587,15]
[343174082,1732395095167,-209.276393,0.0005587,120]
[343174083,1732395095176,-151.0,0.0005587,120]
[343174084,1732395095185,-151.0,0.0005587,120]
[343174085,1732395095195,-530.545643,0.0005587,120]
[343174086,1732395095205,-151.0,0.0005587,120]
[343174087,1732395095214,-151.0,0.0005587,120]
[343174088,1732395095223,-570.950524,0.0005587,120]
[343174089,1732395095232,-570.950524,0.0005587,120]
[343174090,1732395095242,-151.0,0.0005587,120]
[343174091,1732395095251,-151.0,0.0005587,120]
[343174092,1732395095260,-151.0,0.0005587,120]
[343174093,1732395095270,-537.267678,0.0005587,120]
[343174094,1732395095279,-490.770806,0.0005587,120]
[343174095,1732395095289,-490.770806,0.0005587,120]
[343174096,1732395095299,-537.267678,0.0005587,120]
[343174097,1732395095308,-151.0,0.0005587,120]
[343174098,1732395095318,-151.0,0.0005587,120]
[343174099,1732395095328,-151.0,0.0005587,120]
[343174100,1732395095338,-170.401115,0.0005587,120]
[343174101,1732395095354,-170.401115,0.0005587,120]
[343174102,1732395095364,-151.0,0.0005587,120]
[343174103,1732395095374,-1062.144286,0.0005587,120]
[343174104,1732395095382,-1062.144286,0.0005587,120]
[343174105,1732395095391,-390.120924,0.0005587,120]
[343174106,1732395095401,-151.0,0.0005587,120]
[343174107,1732395095411,-390.120924,0.0005587,120]
[343174108,1732395095419,-151.0,0.0005587,120]
[343174109,1732395095428,-151.0,0.0005587,120]
[343174110,1732395095438,-151.0,0.0005587,120]
[343174111,1732395095448,-193.685284,0.0005587,120]
[343174112,1732395095457,-622.372023,0.0005587,120]
[343174113,1732395095467,-622.372023,0.0005587,120]
[343174114,1732395095477,-622.372023,0.0005587,120]
[343174115,1732395095486,-622.372023,0.0005587,120]
[343174116,1732395095496,-151.0,0.0005587,120]
[343174117,1732395095504,-297.157744,0.0005587,120]
[343174118,1732395095514,-216.55713,0.0005587,120]
[343174119,1732395095523,-297.157744,0.0005587,120]
[343174120,1732395095533,-216.55713,0.0005587,120]
[343174121,1732395095542,-1161.381959,0.0005587,120]
[343174122,1732395095552,-339.096666,0.0005587,120]
[343174123,1732395095563,-1161.381959,0.0005587,120]
[343174124,1732395095573,-339.096666,0.0005587,120]
[343174125,1732395095584,-588.104025,0.0005587,120]
[343174126,1732395095594,-588.104025,0.0005587,120]
[343174127,1732395095610,-588.104025,0.0005587,120]
[343174128,1732395095620,-588.104025,0.0005587,120]
[343174129,1732395095629,-221.498779,0.0005587,120]
[343174130,1732395095639,-151.0,0.0005587,120]
[343174131,1732395095649,-221.498779,0.0005587,120]
[343174132,1732395095658,-151.0,0.0005587,120]
[343174133,1732395095668,-151.0,0.0005587,7]
[343174134,1732395095678,-533.03945,0.0005587,120]
[343174135,1732395095689,-533.03945,0.0005587,120]
[343174136,1732395095700,-1610.150188,0.0005587,120]
[343174137,1732395095710,-238.844802,0.0005587,120]
[343174138,1732395095720,-719.217155,0.0005587,120]
[343174139,1732395095729,-1610.150188,0.0005587,120]
[343174140,1732395095738,-719.217155,0.0005587,120]
[343174141,1732395095749,-151.0,0.0005587,120]
[343174142,1732395095758,-151.0,0.0005587,120]
[343174143,1732395095768,-609.224922,0.0005587,120]
[343174144,1732395095777,-609.224922,0.0005587,120]
[343174145,1732395095787,-350.926,0.0005587,30]
[343174146,1732395095796,-350.926,0.0005587,30]
[343174147,1732395095807,-151.0,0.0005587,120]
[343174148,1732395095816,-281.491385,0.0005587,120]
[343174149,1732395095827,-500.0,0.00055875,120]
[343174150,1732395095837,-628.44630096,0.00055875,120]
[343174151,1732395095849,-500.0,0.00055875,120]
[343174152,1732395095863,-1261.26,0.00055875,120]
[343174153,1732395096004,-1001.57,0.00055875,21]
[343174154,1732395096015,-563.17,0.00055875,120]
[343174155,1732395096025,-1382.09,0.00055875,120]
[343174156,1732395096035,-1274.77,0.00055875,120]
[343174157,1732395096045,-668.77,0.00055875,120]
[343174158,1732395096055,-3404.38,0.00055875,120]
[343174159,1732395096065,-539.06,0.00055875,120]
[343174160,1732395096075,-1159.24,0.00055875,120]
[343174161,1732395096085,-566.82,0.00055875,120]
[343174162,1732395096094,-50800.4189997,0.00055876,2]
[343174163,1732395096108,-240.33,0.00055876,120]
[343174164,1732395096117,-180.25088417,0.00055876,120]
[343174165,1732395096126,-276.14974268,0.00055876,34]
[343174166,1732395096135,-179.53294763,0.00055876,7]
[343174167,1732395096144,-179.61170328,0.00055876,120]
[343174168,1732395096154,-6040.71743476,0.00055878,2]
[343174169,1732395096162,-5195.93200404,0.0005588,120]
[343174170,1732395096171,-6959.77870462,0.0005588,120]
[343174171,1732395096180,-1000.0,0.0005588,27]
[343174172,1732395096191,-300.0,0.00055881,30]
[343174173,1732395096200,-36510.04544848,0.00055882,2]
[343174174,1732395096210,-179.61170326,0.00055883,120]
[343174175,1732395096220,-640.14,0.00055883,120]
[343174176,1732395096229,-500.0,0.00055883,120]
[343174177,1732395096239,-475.52176159,0.00055883,120]
[343174178,1732395096249,-500.0,0.00055883,120]
[343174179,1732395096259,-500.0,0.00055883,120]
[343174180,1732395096269,-168.0,0.00055883,120]
[343174181,1732395096278,-500.0,0.00055883,120]
[343174182,1732395096288,-500.0,0.00055883,120]
[343174183,1732395096298,-357.11,0.00055883,120]
[343174184,1732395096307,-500.0,0.00055883,120]
[343174185,1732395096316,-500.0,0.00055883,120]
[343174186,1732395096326,-500.0,0.00055883,120]
[343174187,1732395096336,-500.0,0.00055883,120]
[343174188,1732395096345,-739.86,0.00055883,120]
[343174189,1732395096357,-500.0,0.00055883,120]
[343174190,1732395096367,-500.0,0.00055883,120]
[343174191,1732395096377,-500.0,0.00055883,120]
[343174192,1732395096387,-500.0,0.00055883,120]
[343174193,1732395096397,-500.0,0.00055883,120]
[343174194,1732395096407,-434.66,0.00055883,120]
[343174195,1732395096416,-500.0,0.00055883,7]
[343174196,1732395096426,-500.0,0.00055883,120]
[343174197,1732395096435,-670.86,0.00055883,120]
[343174198,1732395096445,-1136.02,0.00055883,120]
[343174199,1732395096454,-500.0,0.00055883,120]
[343174200,1732395096463,-201.98268615,0.00055883,120]
[343174201,1732395096472,-500.0,0.00055883,120]
[343174202,1732395096482,-1105.19,0.00055883,120]
[343174203,1732395096491,-500.0,0.00055883,120]
[343174204,1732395096500,-500.0,0.00055883,120]
[343174205,1732395096510,-1261.26,0.00055883,120]
[343174206,1732395096520,-874.11,0.00055883,120]
[343174207,1732395096529,-1001.57,0.00055883,21]
[343174208,1732395096539,-190.21204796,0.00055883,120]
[343174209,1732395096548,-1166.69,0.00055883,120]
[343174210,1732395096558,-563.17,0.00055883,120]
[343174211,1732395096568,-500.0,0.00055883,120]
[343174212,1732395096577,-1382.09,0.00055883,120]
[343174213,1732395096587,-384.06,0.00055883,120]
[343174214,1732395096599,-1274.77,0.00055883,120]
[343174215,1732395096609,-500.0,0.00055883,120]
[343174216,1732395096619,-668.77,0.00055883,120]
[343174217,1732395096629,-2199.43,0.00055883,120]
[343174218,1732395096638,-738.3,0.00055883,120]
[343174219,1732395096648,-3404.38,0.00055883,120]
[343174220,1732395096658,-500.0,0.00055883,120]
[343174221,1732395096668,-1048.37,0.00055883,120]
[343174222,1732395096678,-539.06,0.00055883,120]
[343174223,1732395096687,-1159.24,0.00055883,120]
[343174224,1732395096697,-500.0,0.00055883,120]
[343174225,1732395096706,-500.0,0.00055883,120]
[343174226,1732395096716,-500.0,0.00055883,30]
[343174227,1732395096725,-566.82,0.00055883,120]
[343174228,1732395096735,-439.66,0.00055883,120]
[343174229,1732395096745,-500.0,0.00055883,120]
[343174230,1732395096754,-190263.3893175,0.00055884,2]
[343174231,1732395096763,-45367.69378808,0.00055888,2]
[343174232,1732395096773,-670.86,0.00055889,120]
[343174233,1732395096782,-179.61170326,0.0005589,120]
[343174234,1732395096791,-172.87210779,0.0005589,62]
[343174235,1732395096802,-151.0,0.0005589,120]
[343174236,1732395096812,-151.0,0.0005589,120]
[343174237,1732395096822,-622.372023,0.0005589,120]
[343174238,1732395096831,-622.372023,0.0005589,120]
[343174239,1732395096841,-151.0,0.0005589,120]
[343174240,1732395096852,-1161.381959,0.0005589,120]
[343174241,1732395096863,-339.096666,0.0005589,120]
[343174242,1732395096872,-1161.381959,0.0005589,120]
[343174243,1732395096884,-339.096666,0.0005589,120]
[343174244,1732395096895,-588.104025,0.0005589,120]
[343174245,1732395096904,-588.104025,0.0005589,120]
[343174246,1732395096914,-221.498779,0.0005589,120]
[343174247,1732395096925,-151.0,0.0005589,120]
[343174248,1732395096940,-221.498779,0.0005589,120]
[343174249,1732395096950,-151.0,0.0005589,120]
[343174250,1732395096961,-533.03945,0.0005589,120]
[343174251,1732395096971,-533.03945,0.0005589,120]
[343174252,1732395096980,-1610.150188,0.0005589,120]
[343174253,1732395096989,-719.217155,0.0005589,120]
[343174254,1732395096999,-1610.150188,0.0005589,120]
[343174255,1732395097008,-719.217155,0.0005589,120]
[343174256,1732395097017,-198.844852,0.0005589,120]
[343174257,1732395097027,-151.0,0.0005589,120]
[343174258,1732395097036,-609.224922,0.0005589,120]
[343174259,1732395097046,-609.224922,0.0005589,120]
[343174260,1732395097055,-350.926,0.0005589,30]
[343174261,1732395097064,-350.926,0.0005589,30]
[343174262,1732395097074,-307.05761374,0.0005589,2]
[343174263,1732395097083,-207.3000881,0.0005589,2]
[343174264,1732395097092,-151.0,0.0005589,120]
[343174265,1732395097105,-1103.64706512,0.0005589,2]
[343174266,1732395097115,-45367.69378808,0.0005589,2]
[343174267,1732395097124,-180.25,0.0005589,120]
[343174268,1732395097133,-35145.15051775,0.00055893,31]
[343174269,1732395097143,-151.0,0.00055893,120]
[343174270,1732395097152,-151.0,0.00055893,120]
[343174271,1732395097162,-151.0,0.00055893,120]
[343174272,1732395097171,-151.0,0.00055893,120]
[343174273,1732395097180,-151.0,0.00055893,120]
[343174274,1732395097190,-151.0,0.00055893,120]
[343174275,1732395097200,-151.0,0.00055893,120]
[343174276,1732395097209,-151.0,0.00055893,120]
[343174277,1732395097220,-537.267678,0.00055893,120]
[343174278,1732395097229,-490.770806,0.00055893,120]
[343174279,1732395097238,-490.770806,0.00055893,120]
[343174280,1732395097247,-537.267678,0.00055893,120]
[343174281,1732395097256,-151.0,0.00055893,120]
[343174282,1732395097264,-201.552512,0.00055893,120]
[343174283,1732395097273,-151.0,0.00055893,120]
[343174284,1732395097283,-170.401115,0.00055893,120]
[343174285,1732395097292,-170.401115,0.00055893,120]
[343174286,1732395097301,-151.0,0.00055893,120]
[343174287,1732395097311,-1062.144286,0.00055893,120]
[343174288,1732395097320,-1062.144286,0.00055893,120]
[343174289,1732395097329,-390.120924,0.00055893,120]
[343174290,1732395097339,-390.120924,0.00055893,120]
[343174291,1732395097349,-297.157744,0.00055893,120]
[343174292,1732395097358,-216.55713,0.00055893,120]
[343174293,1732395097368,-297.157744,0.00055893,120]
[343174294,1732395097377,-216.55713,0.00055893,120]
[343174295,1732395097386,-150.0,0.00055897,14]
[343174296,1732395097395,-5622.53376373,0.00055899,2]
[343174297,1732395097404,-151.0,0.00055899,120]
[343174298,1732395097414,-919.83258,0.00055899,120]
[343174299,1732395097423,-919.83258,0.00055899,120]
[343174300,1732395097432,-151.0,0.00055899,120]
[343174301,1732395097441,-530.545643,0.00055899,120]
[343174302,1732395097451,-530.545643,0.00055899,120]
[343174303,1732395097460,-570.950524,0.00055899,120]
[343174304,1732395097469,-570.950524,0.00055899,120]
[343174305,1732395097479,-500.0,0.00055899,120]
[343174306,1732395097488,-500.0,0.00055899,120]
[343174307,1732395097497,-1261.26,0.00055899,120]
[343174308,1732395097507,-1001.57,0.00055899,21]
[343174309,1732395097516,-563.17,0.00055899,120]
[343174310,1732395097525,-1382.09,0.00055899,120]
[343174311,1732395097534,-1274.77,0.00055899,120]
[343174312,1732395097544,-668.77,0.00055899,120]
[343174313,1732395097554,-3404.38,0.00055899,120]
[343174314,1732395097563,-539.06,0.00055899,120]
[343174315,1732395097573,-1159.24,0.00055899,120]
[343174316,1732395097583,-566.82,0.00055899,120]
[343174317,1732395097592,-300.0,0.000559,120]
[343174318,1732395097603,-11040.3767601,0.000559,90]
[343174319,1732395097613,-150.0,0.000559,120]
[343174320,1732395097622,-157.11,0.000559,120]
[343174321,1732395097631,-5000.0,0.000559,120]
[343174322,1732395097641,-319.74,0.000559,120]
[343174323,1732395097652,-1010.9,0.000559,120]
[343174324,1732395097661,-1000.0,0.000559,30]
[343174325,1732395097671,-158.0,0.000559,72]
[343174326,1732395097683,-229.0,0.000559,30]
[343174327,1732395097692,-1000.0,0.000559,27]
[343174328,1732395097702,-449.16017645,0.00055901,2]
[343174329,1732395097711,-1181.0,0.00055905,3]
[343174330,1732395097720,-190.78,0.00055906,120]
[343174331,1732395097730,-500.0,0.00055906,120]
[343174332,1732395097740,-500.0,0.00055906,120]
[343174333,1732395097750,-168.0,0.00055906,120]
[343174334,1732395097759,-500.0,0.00055906,120]
[343174335,1732395097768,-500.0,0.00055906,120]
[343174336,1732395097777,-500.0,0.00055906,120]
[343174337,1732395097787,-500.0,0.00055906,120]
[343174338,1732395097796,-500.0,0.00055906,120]
[343174339,1732395097806,-500.0,0.00055906,120]
[343174340,1732395097815,-739.86,0.00055906,120]
[343174341,1732395097825,-500.0,0.00055906,120]
[343174342,1732395097834,-346.6912906,0.00055906,120]
[343174343,1732395097843,-1477.88200041,0.00055906,120]
[343174344,1732395097855,-500.0,0.00055906,120]
[343174345,1732395097865,-500.0,0.00055906,120]
[343174346,1732395097874,-500.0,0.00055906,7]
[343174347,1732395097887,-588.72,0.00055906,120]
[343174348,1732395097896,-670.86,0.00055906,120]
[343174349,1732395097906,-1136.02,0.00055906,120]
[343174350,1732395097915,-565.89625935,0.00055906,120]
[343174351,1732395097927,-500.0,0.00055906,120]
[343174352,1732395097936,-1105.19,0.00055906,120]
[343174353,1732395097945,-500.0,0.00055906,120]
[343174354,1732395097956,-150.0,0.00055906,14]
[343174355,1732395097965,-874.11,0.00055906,120]
[343174356,1732395097975,-1166.69,0.00055906,120]
[343174357,1732395097984,-500.0,0.00055906,120]
[343174358,1732395097994,-500.0,0.00055906,120]
[343174359,1732395098004,-2199.43,0.00055906,120]
[343174360,1732395098013,-738.3,0.00055906,120]
[343174361,1732395098022,-500.0,0.00055906,120]
[343174362,1732395098032,-1048.37,0.00055906,120]
[343174363,1732395098041,-501.96,0.00055906,120]
[343174364,1732395098052,-569.75709713,0.00055906,120]
[343174365,1732395098063,-500.0,0.00055906,30]
[343174366,1732395098072,-284.67,0.00055906,120]
[343174367,1732395098082,-190263.3893175,0.00055907,2]
[343174368,1732395098092,-484.02266668,0.0005591,120]
[343174369,1732395098103,-500.0,0.0005591,120]
[343174370,1732395098113,-500.0,0.0005591,120]
[343174371,1732395098123,-500.0,0.0005591,120]
[343174372,1732395098132,-500.0,0.0005591,120]
[343174373,1732395098142,-171.41060928,0.0005591,120]
[343174374,1732395098152,-1261.26,0.0005591,120]
[343174375,1732395098162,-1261.26,0.0005591,120]
[343174376,1732395098172,-1261.26,0.0005591,120]
[343174377,1732395098183,-1261.26,0.0005591,120]
[343174378,1732395098192,-1261.44865698,0.0005591,120]
[343174379,1732395098201,-1001.57,0.0005591,21]
[343174380,1732395098210,-1001.57,0.0005591,21]
[343174381,1732395098342,-1001.57,0.0005591,21]
[343174382,1732395098363,-1001.57,0.0005591,21]
[343174383,1732395098373,-1001.6874292,0.0005591,21]
[343174384,1732395098382,-563.17,0.0005591,120]
[343174385,1732395098392,-1382.09,0.0005591,120]
[343174386,1732395098402,-563.17,0.0005591,120]
[343174387,1732395098411,-1382.09,0.0005591,120]
[343174388,1732395098421,-563.17,0.0005591,120]
[343174389,1732395098431,-1382.09,0.0005591,120]
[343174390,1732395098443,-563.17,0.0005591,120]
[343174391,1732395098453,-1382.09,0.0005591,120]
[343174392,1732395098463,-563.3899334,0.0005591,120]
[343174393,1732395098473,-1382.09,0.0005591,120]
[343174394,1732395098482,-151.0,0.0005591,120]
[343174395,1732395098492,-1274.77,0.0005591,120]
[343174396,1732395098501,-1274.77,0.0005591,120]
[343174397,1732395098510,-1274.77,0.0005591,120]
[343174398,1732395098520,-1274.77,0.0005591,120]
[343174399,1732395098529,-1274.89,0.0005591,120]
[343174400,1732395098539,-151.0,0.0005591,120]
[343174401,1732395098549,-668.77,0.0005591,120]
[343174402,1732395098559,-668.77,0.0005591,120]
[343174403,1732395098569,-668.77,0.0005591,120]
[343174404,1732395098579,-668.77,0.0005591,120]
[343174405,1732395098590,-668.87814513,0.0005591,120]
[343174406,1732395098601,-3404.38,0.0005591,120]
[343174407,1732395098611,-3404.38,0.0005591,120]
[343174408,1732395098621,-3404.38,0.0005591,120]
[343174409,1732395098630,-3404.38,0.0005591,120]
[343174410,1732395098641,-3404.59950419,0.0005591,120]
[343174411,1732395098650,-533.03945,0.0005591,120]
[343174412,1732395098660,-533.03945,0.0005591,120]
[343174413,1732395098669,-1610.150188,0.0005591,120]
[343174414,1732395098679,-719.217155,0.0005591,120]
[343174415,1732395098688,-1610.150188,0.0005591,120]
[343174416,1732395098698,-539.06,0.0005591,120]
[343174417,1732395098708,-539.06,0.0005591,120]
[343174418,1732395098718,-539.06,0.0005591,120]
[343174419,1732395098728,-539.06,0.0005591,120]
[343174420,1732395098737,-719.217155,0.0005591,120]
[343174421,1732395098748,-539.06269015,0.0005591,120]
[343174422,1732395098758,-151.0,0.0005591,120]
[343174423,1732395098768,-1159.24,0.0005591,120]
[343174424,1732395098778,-1159.24,0.0005591,120]
[343174425,1732395098788,-1159.24,0.0005591,120]
[343174426,1732395098798,-1159.24,0.0005591,120]
[343174427,1732395098811,-1159.43026813,0.0005591,120]
[343174428,1732395098822,-609.224922,0.0005591,120]
[343174429,1732395098832,-609.224922,0.0005591,120]
[343174430,1732395098841,-350.926,0.0005591,30]
[343174431,1732395098853,-350.926,0.0005591,30]
[343174432,1732395098863,-566.82,0.0005591,120]
[343174433,1732395098873,-566.82,0.0005591,120]
[343174434,1732395098883,-566.82,0.0005591,120]
[343174435,1732395098896,-566.82,0.0005591,120]
[343174436,1732395098906,-567.02547291,0.0005591,120]
[343174437,1732395098916,-151.0,0.0005591,120]
[343174438,1732395098933,-6040.71743476,0.00055911,2]
[343174439,1732395098943,-250.46529616,0.00055916,2]
[343174440,1732395098952,-7816.6034624,0.00055919,2]
[343174441,1732395098963,-15478.5114581,0.00055931,2]
[343174442,1732395098973,-1600.553018,0.00055933,2]
[343174443,1732395098983,-50914.70104418,0.00055934,2]
[343174444,1732395098992,-151.0,0.00055934,120]
[343174445,1732395099002,-1161.381959,0.00055934,120]
[343174446,1732395099011,-339.096666,0.00055934,120]
[343174447,1732395099022,-1161.381959,0.00055934,120]
[343174448,1732395099032,-339.096666,0.00055934,120]
[343174449,1732395099042,-588.104025,0.00055934,120]
[343174450,1732395099051,-588.104025,0.00055934,120]
[343174451,1732395099061,-221.498779,0.00055934,120]
[343174452,1732395099070,-221.498779,0.00055934,120]
[343174453,1732395099080,-17601.87706532,0.00055935,2]
[343174454,1732395099090,-150.0,0.00055938,14]
[343174455,1732395099099,-15478.5114581,0.00055944,2]
[343174456,1732395099108,-150.0,0.00055951,14]
[343174457,1732395099118,-7816.6034624,0.00055957,2]
[343174458,1732395099127,-150.0,0.00055958,120]
[343174459,1732395099136,-5622.53376373,0.00055959,2]
[343174460,1732395099145,-500.0,0.00055969,120]
[343174461,1732395099156,-500.0,0.00055969,120]
[343174462,1732395099166,-168.0,0.00055969,120]
[343174463,1732395099175,-500.0,0.00055969,120]
[343174464,1732395099187,-500.0,0.00055969,120]
[343174465,1732395099197,-500.0,0.00055969,120]
[343174466,1732395099208,-500.0,0.00055969,120]
[343174467,1732395099218,-500.0,0.00055969,120]
[343174468,1732395099228,-500.0,0.00055969,120]
[343174469,1732395099238,-151.0,0.00055969,120]
[343174470,1732395099248,-739.86,0.00055969,120]
[343174471,1732395099258,-500.0,0.00055969,120]
[343174472,1732395099267,-151.0,0.00055969,120]
[343174473,1732395099276,-170.401115,0.00055969,120]
[343174474,1732395099286,-151.0,0.00055969,120]
[343174475,1732395099296,-170.401115,0.00055969,120]
[343174476,1732395099305,-500.0,0.00055969,120]
[343174477,1732395099315,-500.0,0.00055969,120]
[343174478,1732395099324,-1062.144286,0.00055969,120]
[343174479,1732395099334,-1062.144286,0.00055969,120]
[343174480,1732395099343,-390.120924,0.00055969,120]
[343174481,1732395099354,-390.120924,0.00055969,120]
[343174482,1732395099364,-151.0,0.00055969,120]
[343174483,1732395099373,-293.79,0.00055969,7]
[343174484,1732395099383,-670.86,0.00055969,120]
[343174485,1732395099392,-1136.02,0.00055969,120]
[343174486,1732395099402,-151.0,0.00055969,120]
[343174487,1732395099412,-500.0,0.00055969,120]
[343174488,1732395099422,-622.372023,0.00055969,120]
[343174489,1732395099431,-1105.19,0.00055969,120]
[343174490,1732395099440,-500.0,0.00055969,120]
[343174491,1732395099449,-622.372023,0.00055969,120]
[343174492,1732395099459,-874.11,0.00055969,120]
[343174493,1732395099468,-297.157744,0.00055969,120]
[343174494,1732395099479,-216.55713,0.00055969,120]
[343174495,1732395099488,-297.157744,0.00055969,120]
[343174496,1732395099497,-216.55713,0.00055969,120]
[343174497,1732395099506,-1166.69,0.00055969,120]
[343174498,1732395099515,-480.84,0.00055969,120]
[343174499,1732395099525,-500.0,0.00055969,120]
[343174500,1732395099535,-2199.43,0.00055969,120]
[343174501,1732395099544,-738.3,0.00055969,120]
[343174502,1732395099553,-627.86,0.00055969,120]
[343174503,1732395099562,-1048.37,0.00055969,120]
[343174504,1732395099571,-500.0,0.00055969,30]
[343174505,1732395099580,-50914.70104418,0.00055969,2]
[343174506,1732395099590,-150.0,0.0005597,14]
[343174507,1732395099600,-200.0,0.0005597,100]
[343174508,1732395099610,-17601.87706532,0.00055971,2]
[343174509,1732395099619,-151.0,0.00055972,120]
[343174510,1732395099629,-151.0,0.00055972,120]
[343174511,1732395099639,-151.0,0.00055972,120]
[343174512,1732395099649,-151.0,0.00055972,120]
[343174513,1732395099659,-537.267678,0.00055972,120]
[343174514,1732395099669,-490.770806,0.00055972,120]
[343174515,1732395099678,-490.770806,0.00055972,120]
[343174516,1732395099688,-537.267678,0.00055972,120]
[343174517,1732395099697,-300.0,0.00055974,30]
[343174518,1732395099707,-500.0,0.00055974,120]
[343174519,1732395099716,-500.0,0.00055974,120]
[343174520,1732395099726,-168.0,0.00055974,120]
[343174521,1732395099735,-500.0,0.00055974,120]
[343174522,1732395099745,-500.0,0.00055974,120]
[343174523,1732395099755,-500.0,0.00055974,120]
[343174524,1732395099765,-433.06886155,0.00055974,120]
[343174525,1732395099774,-500.0,0.00055974,120]
[343174526,1732395099784,-500.0,0.00055974,120]
[343174527,1732395099794,-739.86,0.00055974,120]
[343174528,1732395099804,-284.6,0.00055974,120]
[343174529,1732395099813,-500.0,0.00055974,120]
[343174530,1732395099823,-500.0,0.00055974,120]
[343174531,1732395099832,-670.86,0.00055974,120]
[343174532,1732395099842,-1136.02,0.00055974,120]
[343174533,1732395099854,-500.0,0.00055974,120]
[343174534,1732395099863,-1105.19,0.00055974,120]
[343174535,1732395099873,-500.0,0.00055974,120]
[343174536,1732395099884,-874.11,0.00055974,120]
[343174537,1732395099894,-1166.69,0.00055974,120]
[343174538,1732395099904,-500.0,0.00055974,120]
[343174539,1732395099913,-2199.43,0.00055974,120]
[343174540,1732395099923,-738.3,0.00055974,120]